fUST/lending_fUST_20240515
["ID","MTS","AMOUNT","RATE_DAILY","PERIOD"]
[327047907,1715739049252,-1190.395978,0.00019998,2]
[327047908,1715739049261,-1190.395977,0.00019998,2]
[327047909,1715739049271,-843.598944,0.00019998,2]
[327047910,1715739049281,-843.598944,0.00019998,2]
[327047911,1715739049291,-843.598944,0.00019998,2]
[327047912,1715739049300,-843.598935,0.00019998,2]
[327047913,1715739049310,-154.84856643,0.00019999,2]
[327047914,1715739049319,-47455.10629417,0.0002,2]
[327047915,1715739201125,2654.54651018,0.00016678,2]
[327047916,1715739201481,2654.54651018,0.00016898,2]
[327047918,1715739611638,2654.54651018,0.00016991,2]
[327047919,1715739638477,236.41159802,9.999e-05,2]
[327047920,1715739738480,330.80243403,9.999e-05,2]
[327047921,1715739883802,158.42042026,9.999e-05,2]
[327047922,1715739885832,709.0884584,9.999e-05,2]
[327047923,1715740134229,1616.08370807,0.00016962,2]
[327048048,1715740241465,-10445.91088101,0.00017923,2]
[327048049,1715740241475,-690.41533438,0.000189,2]
[327048050,1715740241485,-932.27671008,0.00018998,2]
[327048051,1715740241494,-540.45129416,0.000199,2]
[327048052,1715740241502,-339.93875674,0.000199,2]
[327048053,1715740241512,-2636.76571218,0.00019974,2]
[327048054,1715740241524,-108.16744998,0.00019974,2]
[327048055,1715740241534,-275.45621492,0.00019998,2]
[327048056,1715740241544,-331.19470982,0.00019998,2]
[327048057,1715740241554,-670.17308781,0.00019998,2]
[327048058,1715740241563,-159.04711301,0.00019998,2]
[327048059,1715740241572,-282.21538852,0.00019999,2]
[327048060,1715740241581,-251.32363431,0.00019999,2]
[327048061,1715740241591,-161.43838649,0.00019999,2]
[327048062,1715740241600,-355.94055503,0.00019999,2]
[327048063,1715740241609,-464.23773208,0.00019999,2]
[327048064,1715740241618,-529.65648377,0.00019999,2]
[327048065,1715740241627,-500.0,0.00019999,2]
[327048066,1715740241637,-500.0,0.00019999,2]
[327048067,1715740241646,-500.0,0.00019999,2]
[327048068,1715740241656,-500.0,0.00019999,2]
[327048069,1715740241665,-500.0,0.00019999,2]
[327048070,1715740241675,-500.0,0.00019999,2]
[327048071,1715740241685,-238.40422584,0.00019999,2]
[327048072,1715740241695,-457.35923293,0.00019999,2]
[327048073,1715740241705,-154.82968734,0.0002,2]
[327048074,1715740241715,-64305.58866798,0.0002,2]
[327048119,1715740243965,-814.87232,0.0002,2]
[327048215,1715740247527,-464.91287865,0.0002,2]
[327048217,1715740574135,250.0,0.00016882,2]
[327048233,1715741431965,-15204.32227572,0.00017471,2]
[327048234,1715741431975,-449.70701,0.00017552,2]
[327048236,1715741431984,-299.78789822,0.00018435,2]
[327048239,1715741431993,-10445.91088101,0.00018435,2]
[327048241,1715741432002,-20820.44261519,0.00018436,2]
[327048267,1715741432232,-791.88365063,0.00018436,2]
[327048818,1715741438086,-3277.67373418,0.00018436,2]
[327048821,1715741438096,-460.27688959,0.000189,2]
[327048823,1715741438106,-180.318126,0.00019178,2]
[327048825,1715741438116,-217.49694029,0.00019799,2]
[327048827,1715741438126,-616.54217907,0.000199,2]
[327048829,1715741438135,-260.61015569,0.0001997,2]
[327048956,1715741440497,-2484.32300647,0.0001997,2]
[327048957,1715741440508,-586.4127612,0.00019998,2]
[327048959,1715741440517,-460.12125252,0.00019998,2]
[327048960,1715741440527,-898.85050344,0.00019998,2]
[327048961,1715741440536,-500.0,0.00019999,2]
[327048962,1715741440547,-198.95902803,0.00019999,2]
[327048963,1715741440556,-226.9956359,0.00019999,2]
[327048964,1715741440566,-152.54595215,0.00019999,2]
[327048965,1715741440575,-521.52126776,0.00019999,2]
[327048966,1715741440585,-500.0,0.00019999,2]
[327048967,1715741440595,-457.68977259,0.00019999,2]
[327048968,1715741440604,-500.0,0.00019999,2]
[327048969,1715741440614,-500.0,0.00019999,2]
[327048970,1715741440624,-500.0,0.00019999,2]
[327048971,1715741440634,-500.0,0.00019999,2]
[327048972,1715741440643,-500.0,0.00019999,2]
[327048973,1715741440653,-500.0,0.00019999,2]
[327048974,1715741440663,-360.0,0.00019999,2]
[327048975,1715741440673,-500.0,0.00019999,2]
[327048976,1715741440682,-3529.06768057,0.0002,2]
[327049031,1715741446124,-10748.80732892,0.0002,2]
[327049037,1715741611242,418.61346186,9.999e-05,2]
[327049038,1715741626676,154.82968734,9.999e-05,2]
[327049039,1715741631193,230.6679127,9.999e-05,2]
[327049040,1715741654056,154.82968734,9.999e-05,2]
[327049041,1715741657520,522.32566307,9.999e-05,2]
[327049042,1715741658119,719.63401721,9.999e-05,2]
[327049043,1715741662978,677.38012246,9.999e-05,2]
[327049044,1715741670091,154.82968734,9.999e-05,2]
[327049045,1715741672577,840.08452988,9.999e-05,2]
[327049046,1715741684986,322.61987754,9.999e-05,2]
[327049047,1715741868453,-2793.5613618,0.00017275,2]
[327049048,1715741868478,-2685.12730947,0.00017276,2]
[327049049,1715741868504,-154.82968734,0.00017683,2]
[327049050,1715741868527,-2685.12730947,0.00017684,2]
[327049051,1715741974609,2685.12730947,0.0001758,2]
[327049052,1715741974969,2685.12730947,0.00017867,2]
[327049053,1715742010313,154.82968734,0.00017507,2]
[327049054,1715742028357,155.25161046,0.00017332,2]
[327049055,1715742461247,186.79602074,9.999e-05,2]
[327049056,1715742558052,154.82968734,9.999e-05,2]
[327049057,1715742597094,930.94102569,0.00014,2]
[327049118,1715742632629,-224.853505,0.00018133,2]
[327049120,1715742632638,-166.72335426,0.00018215,2]
[327049122,1715742632647,-913.2460273,0.00018525,2]
[327049124,1715742632658,-10445.91088101,0.00018899,2]
[327049126,1715742632667,-1830.43508838,0.000189,2]
[327049128,1715742632676,-933.03708426,0.00018998,2]
[327049130,1715742632685,-185.059073,0.00019178,2]
[327049132,1715742632695,-250.0,0.000195,3]
[327049134,1715742632704,-250.0,0.000195,3]
[327049136,1715742632713,-355.65658953,0.00019898,2]
[327049138,1715742632722,-2744.93316216,0.00019899,2]
[327049140,1715742632731,-1046.71106461,0.000199,2]
[327049142,1715742632740,-178.70655279,0.00019998,2]
[327049143,1715742632749,-309.70019495,0.00019998,2]
[327049145,1715742632758,-291.33671096,0.00019998,2]
[327049147,1715742632767,-721.33306322,0.00019998,2]
[327049149,1715742632776,-307.91889271,0.00019998,2]
[327049151,1715742632786,-1984.67423095,0.00019998,2]
[327049153,1715742632795,-155.32793049,0.00019998,2]
[327049155,1715742632804,-161.45252522,0.00019998,2]
[327049157,1715742632813,-2803.51973704,0.00019998,2]
[327049159,1715742632822,-484.14817384,0.00019998,2]
[327049161,1715742632832,-1100.77970317,0.00019998,2]
[327049163,1715742632841,-2687.16612974,0.00019998,2]
[327049165,1715742632850,-13888.54212345,0.00019998,2]
[327049167,1715742632861,-186.84975915,0.00019998,2]
[327049169,1715742632870,-155.54545288,0.00019998,2]
[327049171,1715742632880,-5837.12537932,0.00019999,2]
[327049173,1715742632889,-223.50911475,0.00019999,2]
[327049175,1715742632898,-8568.89440393,0.0002,2]
[327049224,1715742638498,-154.82968734,0.00018898,2]
[327049226,1715742638508,-250.0,0.000195,3]
[327049228,1715742638518,-36901.16635124,0.0002,2]
[327049230,1715742638527,-35000.72947453,0.0002,2]
[327049420,1715742646335,-30721.39551598,0.0002,2]
[327049421,1715742646344,-154.82968734,0.0002,2]
[327049422,1715742646354,-240.12095836,0.0002,2]
[327049423,1715742646363,-281.0,0.0002,2]
[327049424,1715742646374,-200.0,0.0002,2]
[327049425,1715742646382,-151.47642396,0.0002,2]
[327049426,1715742646391,-782.6,0.00020058,2]
[327049427,1715742646400,-248.8,0.00020058,2]
[327049428,1715742646409,-625.27928082,0.00020399,2]
[327049429,1715742646419,-153.7906523,0.00020548,2]
[327049430,1715742646428,-154.4014132,0.00020548,2]
[327049431,1715742646437,-164.7596114,0.00020548,2]
[327049432,1715742646447,-153.0,0.00020548,2]
[327049433,1715742646456,-153.0,0.00020548,2]
[327049434,1715742646466,-153.0,0.00020548,2]
[327049435,1715742646475,-153.0,0.00021096,2]
[327049436,1715742646485,-153.0,0.00021096,2]
[327049437,1715742646494,-153.0000001,0.00021096,2]
[327049438,1715742646504,-153.0,0.00021096,2]
[327049439,1715742646513,-153.0,0.00021096,2]
[327049440,1715742646522,-782.6,0.00021098,2]
[327049441,1715742646531,-248.8,0.00021098,2]
[327049442,1715742646541,-1046.71106461,0.00021249,2]
[327049443,1715742646550,-355.65658953,0.00021307,2]
[327049444,1715742646560,-157.0455383,0.0002137,2]
[327049445,1715742646569,-620.26396404,0.00021419,2]
[327049446,1715742646579,-166.666666,0.00021918,2]
[327049447,1715742646589,-448.65011,0.00021918,2]
[327049448,1715742646598,-448.65011,0.00021918,2]
[327049449,1715742646609,-151.0,0.00021918,2]
[327049450,1715742646618,-151.0,0.00021918,2]
[327049452,1715742646627,-5234.99145324,0.00022,4]
[327049453,1715742646637,-159.63021158,0.00022,2]
[327049455,1715742646646,-782.6,0.00022138,2]
[327049456,1715742646655,-248.8,0.00022138,2]
[327049458,1715742646665,-153.0,0.00022185,2]
[327049460,1715742646675,-166.666666,0.00022431,2]
[327049461,1715742646684,-306.0,0.00022466,2]
[327049463,1715742646693,-620.0131982,0.0002249,2]
[327049465,1715742646703,-1046.71106461,0.00022597,2]
[327049478,1715742646859,-152.31,0.0002269,2]
[327049479,1715742646870,-355.65658953,0.00022717,2]
[327049481,1715742646879,-306.0,0.00022769,2]
[327049482,1715742646888,-153.0,0.00022769,2]
[327049483,1715742646899,-153.0,0.00022769,2]
[327049484,1715742646908,-153.0,0.00022769,2]
[327049485,1715742646917,-153.0,0.00022769,2]
[327049486,1715742646926,-306.0,0.00022769,2]
[327049487,1715742646935,-153.0,0.00022769,2]
[327049489,1715742646944,-153.0,0.00022769,2]
[327049491,1715742646954,-166.666666,0.00022944,2]
[327049493,1715742646964,-155.40132115,0.00023,2]
[327049495,1715742646974,-782.6,0.00023179,2]
[327049497,1715742646983,-248.8,0.00023179,2]
[327049499,1715742646993,-166.666666,0.00023456,2]
[327049501,1715742647003,-306.0,0.00023591,2]
[327049503,1715742647013,-620.00065991,0.00023615,2]
[327049505,1715742647023,-1830.43508838,0.000239,2]
[327049506,1715742647033,-1046.71106461,0.00023946,2]
[327049507,1715742647042,-166.666666,0.00023969,2]
[327049508,1715742647052,-355.65658953,0.00024126,2]
[327049509,1715742647061,-782.6,0.00024219,3]
[327049510,1715742647071,-448.65011,0.00024221,2]
[327049511,1715742647081,-306.15966642,0.00024221,2]
[327049512,1715742647111,-142.49044358,0.00024221,2]
[327049513,1715742647122,-151.0,0.00024221,2]
[327049514,1715742647134,-226.854352,0.00024221,2]
[327049515,1715742647143,-3418.00847293,0.000244,2]
[327049516,1715742647152,-166.666666,0.00024482,2]
[327049517,1715742647162,-16216.61774067,0.00024657,3]
[327049518,1715742647172,-463.29257941,0.00024658,2]
[327049519,1715742647182,-380.0,0.00024658,2]
[327049520,1715742647191,-2000.0,0.000248,2]
[327049521,1715742647201,-4805.183054,0.00024898,2]
[327049522,1715742647210,-2593.72337385,0.00024898,2]
[327049523,1715742647219,-1525.92649464,0.00024898,2]
[327049524,1715742647229,-197.00382227,0.00024898,2]
[327049525,1715742647238,-559.45431183,0.00024898,2]
[327049526,1715742647247,-1277.0582892,0.00024898,2]
[327049527,1715742647257,-158.876235,0.00024898,2]
[327049528,1715742647267,-343.434043,0.00024898,2]
[327049529,1715742647276,-343.434043,0.00024898,2]
[327049530,1715742647286,-303.171832,0.00024898,2]
[327049531,1715742647296,-303.171832,0.00024898,2]
[327049532,1715742647306,-744.54137026,0.00024899,2]
[327049533,1715742647315,-88888.0,0.000249,3]
[327049534,1715742647324,-343.434043,0.000249,2]
[327049535,1715742647333,-343.434043,0.000249,2]
[327049536,1715742647342,-448.65011,0.000249,2]
[327049537,1715742647351,-448.65011,0.000249,2]
[327049538,1715742647361,-151.0,0.000249,2]
[327049539,1715742647371,-303.171832,0.000249,2]
[327049540,1715742647381,-303.171832,0.000249,2]
[327049541,1715742647390,-154.8580054,0.00025,2]
[327049542,1715742647399,-1056.14,0.00025,2]
[327049543,1715742647408,-1106.79452164,0.00025,2]
[327049544,1715742647418,-400.55879163,0.00025,2]
[327049545,1715742647427,-167.35509674,0.00025,2]
[327049546,1715742647436,-33697.29178581,0.00025,2]
[327049547,1715742756124,942.02546264,0.00015,2]
[327049549,1715743467891,-150.0,0.0003,120]
[327049550,1715743468078,-150.0,0.0003,120]
[327049551,1715743468130,-200.0,0.0003,120]
[327049552,1715743705489,-6500.0,0.00018429,2]
[327049555,1715743783740,-59372.20880014,0.00018327,2]
[327049556,1715743783766,-14877.79119986,0.00018328,2]
[327049566,1715743814307,345.5052659,0.00017829,2]
[327049569,1715743823324,1148.51048266,0.00015,2]
[327049603,1715743832650,-7270.36065622,0.00018326,2]
[327049605,1715743832662,-31.95925361,0.00018326,2]
[327049607,1715743832672,-11278.99326162,0.00018328,2]
[327049609,1715743832682,-298.80996487,0.0001833,2]
[327049611,1715743832691,-224.38826362,0.00018429,2]
[327049613,1715743832700,-1551.60855196,0.00018429,2]
[327049615,1715743832710,-155.16358403,0.00018429,2]
[327049618,1715743832720,-282.01712164,0.00018429,2]
[327049620,1715743832730,-19241.62943188,0.00018429,2]
[327049622,1715743832740,-10445.91088101,0.0001843,2]
[327049624,1715743832752,-6067.79139374,0.00018431,2]
[327049625,1715743832762,-8078.73085168,0.00018446,2]
[327049627,1715743832771,-701.733887,0.00019054,2]
[327049629,1715743832781,-731.49009263,0.00019138,2]
[327049631,1715743832791,-24788.8238156,0.00019238,2]
[327049633,1715743832801,-250.0,0.00020083,2]
[327049635,1715743832811,-731.49009261,0.00020579,2]
[327049654,1715743832971,-298.80996486,0.00021515,2]
[327049656,1715743832980,-500.0,0.00021916,2]
[327049658,1715743832989,-500.0,0.00021916,2]
[327049660,1715743832999,-500.0,0.00021916,2]
[327049662,1715743833009,-500.0,0.00021916,2]
[327049664,1715743833019,-500.0,0.00021916,2]
[327049666,1715743833028,-500.0,0.00021916,2]
[327049668,1715743833038,-500.0,0.00021916,2]
[327049670,1715743833047,-500.0,0.00021916,2]
[327049672,1715743833056,-245.17038693,0.00021916,2]
[327049674,1715743833065,-500.0,0.00021916,2]
[327049676,1715743833075,-500.0,0.00021916,2]
[327049678,1715743833084,-500.0,0.00021916,2]
[327049680,1715743833094,-500.0,0.00021916,2]
[327049682,1715743833103,-412.31820058,0.00021917,2]
[327049684,1715743833112,-166.666666,0.00021918,2]
[327049686,1715743833122,-9369.7662335,0.00021918,2]
[327049688,1715743833131,-5234.99145324,0.00022,4]
[327049690,1715743833140,-159.63021158,0.00022018,2]
[327049692,1715743833150,-731.49009261,0.00022019,2]
[327049694,1715743833159,-165.9,0.00022296,2]
[327049696,1715743833170,-456.5,0.00022301,2]
[327049698,1715743833180,-166.666666,0.00022431,2]
[327049700,1715743833190,-166.666666,0.00022944,2]
[327049702,1715743833200,-150.0,0.0002344,2]
[327049704,1715743833209,-165.9,0.00023451,2]
[327049706,1715743833219,-456.5,0.00023455,2]
[327049708,1715743833229,-166.666666,0.00023456,2]
[327049710,1715743833238,-731.49009261,0.0002346,2]
[327049712,1715743833247,-180.318126,0.00023522,2]
[327049714,1715743833257,-166.666666,0.00023969,2]
[327049716,1715743833266,-166.666666,0.00024482,2]
[327049718,1715743833276,-200.2660357,0.00024523,2]
[327049720,1715743833285,-200.2660357,0.00024523,2]
[327049722,1715743833295,-200.2660357,0.00024523,2]
[327049724,1715743833305,-200.2660357,0.00024523,2]
[327049726,1715743833315,-200.2660357,0.00024523,2]
[327049728,1715743833324,-200.2660357,0.00024523,2]
[327049730,1715743833334,-200.2660357,0.00024523,2]
[327049732,1715743833344,-200.2660357,0.00024523,2]
[327049734,1715743833354,-200.2660357,0.00024523,2]
[327049736,1715743833363,-200.2660357,0.00024523,2]
[327049738,1715743833373,-200.2660357,0.00024523,2]
[327049740,1715743833383,-200.2660357,0.00024523,2]
[327049742,1715743833393,-165.9,0.00024606,3]
[327049744,1715743833403,-456.5,0.0002461,3]
[327049746,1715743833413,-298.80996486,0.000247,2]
[327049748,1715743833423,-231.81406234,0.0002475,2]
[327049750,1715743833433,-1000.0,0.0002477,2]
[327049752,1715743833442,-416.7728428,0.00024786,2]
[327049754,1715743833452,-2000.0,0.00024796,2]
[327049756,1715743833462,-3060.26446828,0.00024798,2]
[327049758,1715743833471,-154.98906939,0.00024798,2]
[327049760,1715743833481,-1042.78198065,0.00024798,2]
[327049762,1715743833491,-5667.87628131,0.00024798,2]
[327049764,1715743833500,-181.30092113,0.00024798,2]
[327049766,1715743833510,-1619.02483885,0.00024798,2]
[327049768,1715743833520,-2676.97049033,0.00024799,2]
[327049770,1715743833530,-52018.30095134,0.00024799,2]
[327049772,1715743833540,-12162.4633055,0.000248,3]
[327049774,1715743833549,-19803.05249225,0.000248,2]
[327049776,1715743833558,-78151.30342077,0.000248,3]
[327049789,1715743833680,-10736.69657923,0.000248,3]
[327049792,1715743833689,-151.884806,0.000248,2]
[327049793,1715743833699,-151.0,0.000248,2]
[327049795,1715743833708,-151.0,0.000248,2]
[327049797,1715743833718,-151.0,0.000248,2]
[327049799,1715743833726,-1299.36188449,0.00024844,2]
[327050072,1715743839508,-500.0,0.00019237,2]
[327050073,1715743839519,-338.86824268,0.00019237,2]
[327050074,1715743839530,-500.0,0.0002,2]
[327050075,1715743839540,-165.06476291,0.0002,2]
[327050084,1715743841137,-28.84305786,0.0002,2]
[327050085,1715743841147,-1225.67225679,0.00024798,2]
[327050086,1715743841157,-1445.57127767,0.00024844,2]
[327050087,1715743841167,-200.2660357,0.00024852,2]
[327050088,1715743841178,-200.2660357,0.00024852,2]
[327050089,1715743841188,-200.2660357,0.00024852,2]
[327050090,1715743841198,-200.2660357,0.00024852,2]
[327050091,1715743841208,-200.2660357,0.00024852,2]
[327050092,1715743841218,-200.2660357,0.00024852,2]
[327050093,1715743841227,-205.0567256,0.00024852,2]
[327050094,1715743841236,-200.2660357,0.00024852,2]
[327050095,1715743841246,-200.2660357,0.00024852,2]
[327050096,1715743841255,-200.2660357,0.00024852,2]
[327050097,1715743841264,-200.2660357,0.00024852,2]
[327050098,1715743841274,-200.2660357,0.00024852,2]
[327050099,1715743841283,-200.2660357,0.00024852,2]
[327050100,1715743841293,-200.2660357,0.00024852,2]
[327050101,1715743841302,-200.2660357,0.00024852,2]
[327050102,1715743841311,-200.2660357,0.00024852,2]
[327050103,1715743841321,-200.2660357,0.00024852,2]
[327050104,1715743841332,-155.6703274,0.00024852,2]
[327050105,1715743841341,-153.0,0.00024852,2]
[327050106,1715743841350,-153.0,0.00024852,2]
[327050107,1715743841359,-153.0,0.00024852,2]
[327050108,1715743841369,-153.0,0.00024852,2]
[327050109,1715743841378,-160.8287962,0.00024852,2]
[327050110,1715743841387,-2192.36982505,0.00024896,2]
[327050111,1715743841396,-156.499579,0.00024896,2]
[327050112,1715743841405,-151.0,0.00024896,2]
[327050113,1715743841415,-180.883348,0.00024896,2]
[327050114,1715743841424,-151.0,0.00024896,2]
[327050115,1715743841435,-151.0,0.00024896,2]
[327050116,1715743841444,-151.0,0.00024896,2]
[327050117,1715743841453,-312.906573,0.00024896,2]
[327050118,1715743841463,-312.906573,0.00024896,2]
[327050119,1715743841473,-563.497057,0.00024896,2]
[327050120,1715743841482,-563.497057,0.00024896,2]
[327050121,1715743841491,-151.0,0.00024896,2]
[327050122,1715743841501,-151.0,0.00024896,2]
[327050123,1715743841510,-151.0,0.00024896,2]
[327050124,1715743841520,-159.241431,0.00024896,2]
[327050125,1715743841530,-242.537466,0.00024896,2]
[327050126,1715743841540,-242.537466,0.00024896,2]
[327050127,1715743841549,-151.0,0.00024896,2]
[327050128,1715743841559,-151.0,0.00024896,2]
[327050129,1715743841568,-15343.95716855,0.00024897,2]
[327050130,1715743841578,-151.0,0.00024897,2]
[327050131,1715743841587,-27023.87899764,0.00024898,3]
[327050132,1715743841597,-13874.98652929,0.00024898,2]
[327050182,1715743845582,-3595.42104525,0.00018429,2]
[327050183,1715743845740,227.24320113,0.00015,2]
[327050272,1715743877273,627.59558941,9.999e-05,2]
[327050273,1715743978922,513.18353158,9.999e-05,2]
[327050282,1715744322143,194.35454453,9.999e-05,2]
[327050283,1715744755397,157.30082494,9.999e-05,2]
[327050384,1715745038560,-2595.90692662,0.00018321,2]
[327050386,1715745038569,-180.34087453,0.00018322,2]
[327050388,1715745038579,-205.97475849,0.00018322,2]
[327050390,1715745038588,-4056.84439435,0.00018393,2]
[327050392,1715745038597,-10445.91088101,0.00018394,2]
[327050394,1715745038606,-13350.54179651,0.00018402,2]
[327050396,1715745038618,-10936.04922375,0.00018402,2]
[327050648,1715745041035,-1835.82060552,0.0001832,2]
[327050650,1715745041045,-9383.11112796,0.00018402,2]
[327050900,1715745043735,-1435.50000001,0.00018402,2]
[327050908,1715745043799,-24393.08427038,0.00018402,2]
[327051647,1715745661481,575.720449,0.00017413,2]
[327051648,1715745691579,21727.8406139,0.00017403,2]
[327051686,1715746232721,-2595.90692662,0.00018127,2]
[327051688,1715746232730,-1223.88040368,0.00018128,2]
[327051690,1715746232740,-287.860224,0.00018129,2]
[327051692,1715746232749,-4056.84439435,0.00018162,2]
[327051694,1715746232759,-10445.91088101,0.00018162,2]
[327051696,1715746232768,-2744.93316216,0.00018188,2]
[327051698,1715746232777,-416.7728428,0.00018235,2]
[327051700,1715746232787,-299.78789822,0.00018401,2]
[327051718,1715746232940,-7916.60298206,0.00018422,2]
[327051720,1715746232951,-9658.97501648,0.00018429,2]
[327051722,1715746232961,-180.22791367,0.000188,2]
[327051725,1715746232971,-1077.97220772,0.000189,2]
[327051727,1715746232981,-185.059073,0.00019178,2]
[327051729,1715746232990,-154.82968734,0.0002,2]
[327051731,1715746233000,-180.22791367,0.00020366,2]
[327051732,1715746233008,-11143.46257794,0.00020899,2]
[327051734,1715746233017,-500.0,0.00020913,2]
[327051736,1715746233027,-500.0,0.00020913,2]
[327051738,1715746233036,-500.0,0.00020913,2]
[327051740,1715746233046,-500.0,0.00020913,2]
[327051743,1715746233055,-500.0,0.00020913,2]
[327051745,1715746233064,-500.0,0.00020913,2]
[327051747,1715746233073,-500.0,0.00020913,2]
[327051749,1715746233083,-500.0,0.00020913,2]
[327051751,1715746233091,-500.0,0.00020913,2]
[327051753,1715746233101,-500.0,0.00020913,2]
[327051754,1715746233110,-500.0,0.00020913,2]
[327051757,1715746233120,-500.0,0.00020913,2]
[327051759,1715746233129,-500.0,0.00020913,2]
[327051761,1715746233138,-500.0,0.00020913,2]
[327051762,1715746233147,-500.0,0.00020913,2]
[327051764,1715746233156,-500.0,0.00020913,2]
[327051767,1715746233166,-500.0,0.00020913,2]
[327051769,1715746233175,-477.00713695,0.00020913,2]
[327051771,1715746233185,-500.0,0.00020913,2]
[327051773,1715746233195,-500.0,0.00020913,2]
[327051775,1715746233204,-500.0,0.00020913,2]
[327051777,1715746233214,-500.0,0.00020913,2]
[327051778,1715746233223,-500.0,0.00020913,2]
[327051781,1715746233233,-500.0,0.00020913,2]
[327051783,1715746233243,-500.0,0.00020913,2]
[327051785,1715746233252,-500.0,0.00020913,2]
[327051786,1715746233261,-180.22791367,0.00021932,2]
[327051789,1715746233271,-4576.31380386,0.00022,4]
[327052340,1715746238779,-500.60002895,0.00022,4]
[327052364,1715746239041,-158.07762043,0.00022,4]
[327052366,1715746239052,-150.0,0.00022327,2]
[327052368,1715746239062,-342.4,0.00022349,2]
[327052370,1715746239072,-150.0,0.0002319,2]
[327052372,1715746239083,-200.2660357,0.00023208,2]
[327052374,1715746239093,-200.2660357,0.00023208,2]
[327052376,1715746239104,-200.2660357,0.00023208,2]
[327052378,1715746239114,-200.2660357,0.00023208,2]
[327052380,1715746239124,-200.2660357,0.00023208,2]
[327052382,1715746239134,-200.2660357,0.00023208,2]
[327052384,1715746239144,-81.7688727,0.00023208,2]
[327052474,1715746241063,-402.81989694,0.00019058,2]
[327052476,1715746241073,-402.81989694,0.00019295,2]
[327052478,1715746241083,-2502.68274212,0.00020243,2]
[327052480,1715746241093,-118.497163,0.00023208,2]
[327052482,1715746241103,-200.2660357,0.00023208,2]
[327052484,1715746241114,-200.2660357,0.00023208,2]
[327052486,1715746241123,-200.2660357,0.00023208,2]
[327052488,1715746241133,-200.2660357,0.00023208,2]
[327052490,1715746241145,-200.2660357,0.00023208,2]
[327052493,1715746241155,-200.2660357,0.00023208,2]
[327052495,1715746241165,-200.2660357,0.00023208,2]
[327052497,1715746241175,-200.2660357,0.00023208,2]
[327052498,1715746241184,-200.2660357,0.00023208,2]
[327052501,1715746241194,-591.0,0.000234,2]
[327052503,1715746241203,-180.22791367,0.00023498,2]
[327052504,1715746241213,-342.4,0.00023499,2]
[327052506,1715746241223,-1077.97220772,0.000239,2]
[327052508,1715746241233,-180.34087452,0.00024428,2]
[327052511,1715746241243,-180.34087452,0.00024461,2]
[327052513,1715746241254,-180.34087452,0.00024495,2]
[327052515,1715746241263,-428.56164074,0.00024526,2]
[327052517,1715746241273,-20267.90924823,0.00024526,3]
[327052518,1715746241282,-6859.57157418,0.00024527,2]
[327052845,1715747280015,1107.73,0.00018,2]
[327052848,1715747323902,406.30178098,9.999e-05,2]
[327052948,1715747443021,-394.22731001,0.00018895,2]
[327052957,1715748165202,803.06229878,9.999e-05,2]
[327052958,1715748242791,287.860224,0.00017514,2]
[327052959,1715748244540,1042.78198065,9.999e-05,2]
[327052960,1715748498204,10000.0,0.00018,2]
[327052961,1715748506780,10000.0,0.00018,2]
[327052963,1715748521252,5214.0,0.00018,2]
[327052991,1715748632126,-803.06229878,0.00018276,2]
[327052992,1715748632136,-2113.61592946,0.00018277,2]
[327052993,1715748632145,-3060.90965728,0.00018278,2]
[327052994,1715748632154,-59372.20880014,0.00018279,2]
[327052995,1715748632164,-2677.50168314,0.00018279,2]
[327052996,1715748632174,-2106.56360216,0.00018279,2]
[327052997,1715748632185,-10445.91088101,0.0001828,2]
[327052998,1715748632195,-1019.9003364,0.0001828,2]
[327052999,1715748632204,-180.22791367,0.00018285,2]
[327053000,1715748632214,-416.7728428,0.00018375,2]
[327053001,1715748632223,-359.32406924,0.000189,2]
[327053002,1715748632232,-185.059073,0.00019178,2]
[327053003,1715748632243,-499.95393407,0.0002,2]